Cogmind - Beta 10.2 @@@ ROGUE MODE // 2021.05.03 @ 19:25:37 Player: sentrybuster Result: Destroyed by Y-45 Defender with Beam Rifle Performance ------------- Evolutions (1) 500 Regions Visited (3) 600 Robots Destroyed (27) 135 Value Destroyed (643) 643 Prototype IDs (0) 0 Alien Tech Used (0) 0 Bonus (0) 0 TOTAL SCORE: 1878 Bonus ------- None Cogmind --------- Core Integrity 0/400 Matter 82/300 Energy 99/100 System Corruption 0% Temperature Cool (9) Movement Core (200) Ox3 Location -9/Materials Parts ------- > --- POWER (1) -------- (None) > --- PROPULSION (3) --- (None) > --- UTILITY (3) ------ Medium Storage Unit > --- WEAPON (2) ------- Assault Rifle > --- INVENTORY (8) ---- Hover Unit Advanced Sensor Array Advanced Sensor Array Advanced Signal Interpreter Light Assault Rifle Peak State ------------ > --- POWER ------------ Ion Engine > --- PROPULSION ------- Titanium Leg Titanium Leg Titanium Leg > --- UTILITY ---------- Medium Storage Unit Light Armor Plating > --- WEAPON ----------- Small Laser Grenade Launcher > --- INVENTORY -------- Light Ion Engine Light Treads Light Treads Hover Unit Advanced Sensor Array Small Laser Light Assault Rifle Grenade Launcher [Rating: 15] Favorites ----------- Power Ion Engine Engine Ion Engine Propulsion Aluminum Leg Leg Aluminum Leg Utility Medium Storage Unit Storage Medium Storage Unit Protection Light Armor Plating Weapon Small Laser Energy Gun Small Laser Ballistic Gun Assault Rifle Launcher Grenade Launcher Build | -11 -10 -10 -9 ------- Run | Scr Mat Min Mat Slots Evolved 2 | . . . 2 Power . | . . . . Propulsion 1 | . . . 1 Utility 1 | . . . 1 Weapon . | . . . . Parts Attached 24 | 7 7 . 10 Power 2 | 1 . . 1 Engine 2 | 1 . . 1 Core . | . . . . Reactor . | . . . . Propulsion 5 | 2 . . 3 Treads . | . . . . Leg 5 | 2 . . 3 Wheel . | . . . . Hover . | . . . . Flight . | . . . . Utility 3 | 1 2 . . Device . | . . . . Storage 2 | 1 1 . . Processor . | . . . . Hackware . | . . . . Protection 1 | . 1 . . Artifact . | . . . . Weapon 14 | 3 5 . 6 Energy Gun 5 | 2 2 . 1 Energy Cannon . | . . . . Ballistic Gun 4 | 1 . . 3 Ballistic Cannon . | . . . . Launcher 5 | . 3 . 2 Special Weapon . | . . . . Impact Weapon . | . . . . Slashing Weapon . | . . . . Piercing Weapon . | . . . . Special Melee Weapon . | . . . . Unidentified Prototypes . | . . . . Parts Lost 11 | . . . 11 Power 2 | . . . 2 Propulsion 3 | . . . 3 Utility 1 | . . . 1 Weapon 5 | . . . 5 Highest Loss Streak 5 | . . . 5 Average Slot Usage (%) 83 | . 96 100 63 Engine 11 | . 14 14 8 Leg 27 | . 28 28 25 Storage 13 | . 14 14 11 Protection 8 | . 10 14 3 Energy Gun 13 | . 22 14 4 Ballistic Gun 1 | . . . 4 Launcher 7 | . 5 14 5 Naked Turns . | . . . . Heaviest Build 20 | 11 20 20 20 Greatest Support 51 | 20 20 20 51 Greatest Overweight (x) . | . . . . Average Overweight (x) . | . . . . Largest Inventory Capacity 10 | 6 10 8 8 Average Capacity 7 | 4 8 8 8 Most Carried 8 | 4 7 7 8 Average Carried 5 | 2 5 7 6 Final Capacity 8 | 6 8 8 8 Final Carried 7 | 4 7 7 5 Class Distribution -------------------- 100% | Mutant Dominant Class ---------------- Mutant | -10/Materials Mutant | -10/Mines Mutant | -9/Materials Resources | -11 -10 -10 -9 ----------- Run | Scr Mat Min Mat Matter Collected 484 | 233 15 31 205 Remotely . | . . . . Salvage Created 544 | . 176 39 329 Parts 54 | . 24 6 24 Haulers Intercepted . | . . . . Recyclers Shooed 1 | . . . 1 Parts Field Recycled . | . . . . Retrieved Matter . | . . . . Parts Self-Destructed . | . . . . Prevented . | . . . . Kills | -11 -10 -10 -9 ------- Run | Scr Mat Min Mat Combat Hostiles Destroyed 25 | . 7 6 12 Guns 7 | . 3 . 4 AOE 18 | . 4 6 8 Classes Destroyed 5 | . 4 . 1 Worker 1 | . 1 . . Tunneler 1 | . 1 . . Swarmer 12 | . 3 6 3 Grunt 10 | . 4 . 6 Sentry 3 | . . . 3 Best Kill Streak 8 | . 4 5 8 Combat Bots Only 8 | . 3 4 8 Max Kills in Single Turn 3 | . 2 3 2 Gunslinging . | . . . . Exploded 3 | . 2 3 2 Melee . | . . . . Uniques/NPCs Destroyed . | . . . . Combat | -11 -10 -10 -9 -------- Run | Scr Mat Min Mat Damage Taken 1673 | . 142 43 1488 Core 413 | . 12 . 401 Absorbed by Shields . | . . . . Core Remaining (%) 97 | 100 . 95 . Volleys Fired 60 | . 10 4 46 Largest 2 | . 2 1 2 Hottest 80 | . 80 30 80 Shots Fired 83 | . 17 4 62 Gun 59 | . 11 . 48 Cannon . | . . . . Launcher 24 | . 6 4 14 Special . | . . . . Kinetic 29 | . . . 29 Thermal 30 | . 11 . 19 Explosive 24 | . 6 4 14 Electromagnetic . | . . . . Robot Hit Streak 11 | . 7 . 11 Robot Miss Streak 2 | . 1 2 2 Penetration Max . | . . . . Secondary Targets . | . . . . Shots Hit Robots 50 | . 14 . 36 Core Hits 44 | . 16 6 22 Critical Hits . | . . . . Critical Kills . | . . . . Critical Parts Destroyed . | . . . . Melee Attacks . | . . . . Impact . | . . . . Slashing . | . . . . Piercing . | . . . . Sneak Attacks . | . . . . Combat Hostiles . | . . . . Follow-up Attacks . | . . . . Damage Inflicted 1871 | . 452 375 1044 Guns 532 | . 99 . 433 Cannons . | . . . . Explosions 1339 | . 353 375 611 Melee . | . . . . Ramming . | . . . . Kinetic 324 | . . . 324 Thermal 294 | . 99 86 109 Explosive 1253 | . 353 289 611 Electromagnetic . | . . . . Impact . | . . . . Slashing . | . . . . Piercing . | . . . . Highest Corruption . | . . . . Average Corruption . | . . . . Corruption Purged . | . . . . Overload Shots . | . . . . Overflow Damage 53 | . . 36 17 Projectiles . | . . . . Explosions 53 | . . 36 17 Melee . | . . . . Knockbacks . | . . . . Impact . | . . . . Kinetic . | . . . . Secondary . | . . . . Self-Inflicted Damage 97 | . 64 25 8 Shots 5 | . 3 1 1 Rammed . | . . . . Targets Rammed . | . . . . Kicked . | . . . . Crushed . | . . . . Highest Temperature 98 | . 54 . 98 Average Temperature 35 | . 21 . 44 Received Heat Transfer 516 | . 24 . 492 Siege Activations . | . . . . Robots Corrupted . | . . . . Combat Hostiles . | . . . . Parts Fried . | . . . . Impact Corruptions . | . . . . Robots Melted . | . . . . Combat Hostiles . | . . . . Parts Melted . | . . . . Heat Transferred 575 | . 225 100 250 Parts Sabotaged . | . . . . Parts Stolen . | . . . . Parts Stripped . | . . . . Power Chain Reactions . | . . . . Missiles Intercepted . | . . . . Alert | -11 -10 -10 -9 ------- Run | Scr Mat Min Mat Peak Influence 298 | . 190 228 298 Initial 88 | . . 73 88 Average 142 | . 67 196 213 Maximum Alert Level 1 | . . 1 1 Low Security (%) 62 | 100 100 37 33 Level 1 37 | . . 62 66 Level 2 . | . . . . Level 3 . | . . . . Level 4 . | . . . . Level 5 . | . . . . High Security . | . . . . Max Security . | . . . . Squads Dispatched 3 | . 1 . 2 Investigation 1 | . . . 1 Extermination . | . . . . Reinforcement 2 | . 1 . 1 Assault . | . . . . Garrison . | . . . . Intercept . | . . . . Construction Impeded . | . . . . Haulers Reinforced . | . . . . Stealth | -11 -10 -10 -9 --------- Run | Scr Mat Min Mat Distress Signals 2 | . 1 . 1 Communications Jammed . | . . . . Distress Signals . | . . . . Times Spotted 30 | . 9 3 18 Peak Tracking Total 5 | . 3 3 5 Tactical Retreats 1 | . 1 . . Traps | -11 -10 -10 -9 ------- Run | Scr Mat Min Mat Traps Triggered 1 | . . . 1 Indirectly . | . . . . Trap Hack Attempts . | . . . . Triggered . | . . . . Disarmed . | . . . . Reprogrammed . | . . . . Reused . | . . . . Traps Extracted . | . . . . Installed . | . . . . Triggered . | . . . . Machines | -11 -10 -10 -9 ---------- Run | Scr Mat Min Mat Machines Disabled 5 | . 2 1 2 Max in Single Turn 1 | . 1 1 1 Machines Sabotaged . | . . . . Garrisons Compromised . | . . . . Overloaded Fab Kills . | . . . . Fab Network Shutdowns . | . . . . Hacking | -11 -10 -10 -9 --------- Run | Scr Mat Min Mat Machines Accessed 1 | . 1 . . Terminals 1 | . 1 . . Fabricators . | . . . . Repair Stations . | . . . . Recycling Units . | . . . . Scanalyzers . | . . . . Garrison Access . | . . . . Total Hacks 2 | . 2 . . Successful . | . . . . Failed 2 | . 2 . . Catastrophic . | . . . . Database Lockouts . | . . . . Manual 2 | . 2 . . Terminals 2 | . 2 . . Fabricators . | . . . . Repair Stations . | . . . . Recycling Units . | . . . . Scanalyzers . | . . . . Garrison Access . | . . . . Terminal Hacks . | . . . . Fabricator Hacks . | . . . . Repair Station Hacks . | . . . . Recycling Unit Hacks . | . . . . Scanalyzer . | . . . . Garrison Access Hacks . | . . . . Unauthorized Hacks . | . . . . Terminals . | . . . . Fabricators . | . . . . Repair Stations . | . . . . Recycling Units . | . . . . Scanalyzers . | . . . . Garrison Access . | . . . . Data Cores Recovered . | . . . . Used . | . . . . Hacking Detections 1 | . 1 . . Full Trace Events . | . . . . Feedback Events . | . . . . Feedback Blocked . | . . . . Robot Schematics Acquired . | . . . . Robots Built . | . . . . Matter . | . . . . Time . | . . . . Total Robot Build Rating . | . . . . Part Schematics Acquired . | . . . . Parts Built . | . . . . Matter . | . . . . Time . | . . . . Total Part Build Rating . | . . . . Parts Repaired . | . . . . Time . | . . . . Parts Recycled . | . . . . Recycled Matter . | . . . . Retrieved Matter . | . . . . Retrieved Components . | . . . . Parts Scanalyzed . | . . . . Part Schematics Acquired . | . . . . Parts Damaged . | . . . . Bothacking | -11 -10 -10 -9 ------------ Run | Scr Mat Min Mat Used RIF Installer . | . . . . Robots Hacked . | . . . . Non-combat . | . . . . Combat . | . . . . Robot Hacks Applied . | . . . . Relay Couplers Released . | . . . . Robots Rewired . | . . . . Allies Hacked . | . . . . Hacks Repelled . | . . . . Allies | -11 -10 -10 -9 -------- Run | Scr Mat Min Mat Total Allies . | . . . . Largest Group . | . . . . Highest-Rated Group . | . . . . Highest-Rated Ally . | . . . . Total Orders . | . . . . Ally Attacks . | . . . . Total Damage . | . . . . Kills . | . . . . Allies Corrupted . | . . . . Allies Melted . | . . . . Intel | -11 -10 -10 -9 ------- Run | Scr Mat Min Mat Robot Analysis Total . | . . . . Derelict Logs Recovered . | . . . . Drone Launches . | . . . . Drone Recoveries . | . . . . Exploration | -11 -10 -10 -9 ------------- Run | Scr Mat Min Mat Turns Passed 910 | 72 318 185 335 Spaces Moved 552 | 53 197 148 154 Core 7 | 7 . . . Treads . | . . . . Legs 545 | 46 197 148 154 Wheels . | . . . . Hover . | . . . . Flight . | . . . . Fastest Speed 50 | 50 120 120 120 Average Speed 121 | 110 120 120 129 Slowest Speed 130 | 120 120 120 130 Overloaded Moves . | . . . . Propulsion Burnouts . | . . . . Robots Hopped . | . . . . Cave-ins Triggered . | . . . . Exploration Rate (%) 22 | 4 28 38 18 Regions Visited 3 Branch Regions 1 Pre-discovered Areas . | . . . . Known Exits Taken . | . . . . Unknown Exits Taken 3 | 1 1 1 . Scrap Searched 1 | . . 1 . Spaces Dug 14 | . . 14 . Terrain Destroyed 128 | . 41 36 51 Melee . | . . . . Projectile . | . . . . AOE 128 | . 41 36 51 Terrain Rammed . | . . . . Walls Destroyed . | . . . . Machines Disabled . | . . . . Actions | -11 -10 -10 -9 --------- Run | Scr Mat Min Mat Total 704 | 63 259 151 231 Wait 51 | . 41 . 10 Move 549 | 52 196 147 154 Hop . | . . . . Pick Up 10 | 3 3 . 4 Fast Attach 13 | 7 2 . 4 Attach 5 | . . . 5 Detach 4 | 1 1 . 2 Swap 6 | . 5 . 1 Drop 6 | . 1 . 5 Fire 60 | . 10 4 46 Melee . | . . . . Ram . | . . . . Kick . | . . . . Crush . | . . . . Escape Stasis . | . . . . Rewire . | . . . . Trap . | . . . . Miscellaneous . | . . . . Route ------- -11/Scrapyard -10/Materials (discovered 2 exits: [*Mat] / [*Min]) -10/Mines -9/Materials History --------- Turn | Location | Event 4 | -11/Scrapyard | Discovered new exit (range 15) 73 | -11/Scrapyard | Entered Materials 218 | -10/Materials | Discovered new exit (range 15) 321 | -10/Materials | Build established: Mutant 375 | -10/Materials | Discovered new exit (range 8) 391 | -10/Materials | Entered Mines 533 | -10/Mines | Discovered new exit (range 9) 576 | -10/Mines | Entered Materials 576 | -9/Materials | Evolved 2 slots: Propulsion x1, Utility x1 722 | -9/Materials | Destroyed 8 combat bots 746 | -9/Materials | Lost 5 parts (1p1u3w) 841 | -9/Materials | Core integrity fell below 50% 858 | -9/Materials | Lost 4 parts (1p2n1w) 897 | -9/Materials | Core integrity fell below 20% 911 | -9/Materials | Destroyed by Y-45 Defender with Beam Rifle Last Messages --------------- 00799_ R-06 Scavenger collects Imp. Terrain Scanner. 00799_ Acquired 19 matter. 00802_ The unstable cave ceiling collapses. 00802_ R-06 Scavenger collects Ion Engine. 00807_ The unstable cave ceiling collapses. 00810_ Acquired 41 matter. 00816_ Titanium Leg destroyed. 00824_ Lgt. Ion Engine destroyed. 00827_ Titanium Leg destroyed. 00837_ W-16 Scout destroyed. 00845_ Acquired Assault Rifle. 00882_ Y-45 Defender destroyed. 00890_ Critical hit. 00890_ Assault Rifle destroyed. 00891_ Acquired 59 matter. 00893_ Titanium Leg destroyed. 00902_ R-06 Scavenger collects Heat Sink. 00906_ R-06 Scavenger collects Lgt. Armor Plating. 00907_ Y-45 Defender destroyed. 00909_ R-06 Scavenger collects Lgt. Treads. Map ----- +----------------------------------------------------+ | | | | | | | | | | | | | | | | | | | | | | | | | | | | | ???????????????????????????????????????????????? | | ???????????????????????????????????????????????? | | ???????????????????????????????????????????????? | | ???????????????????????????????????????????????? | | ???????????????????????????????????????????????? | | ???????????????????########????????????????????? | | ???????????????????# #????????????????????? | | ???????????????????# #????????????????????? | | ???????????????????# !! ########?????????????? | | ???????????????????# !! # !!!!#?????????????# | | ???????????????????# ! #= ! #??????????#### | | ???????????????????# r@* # #??######### | | ???????????????????####Y### #### # # ## | | ???????????????????# [%! | | ???????????????????# ! | | ???????????????????# !%= ! | | ???????????????????#################=# | | ???????????????????????????????????#### | | ??????????????????????????????????????# | | ??????????????????????????????????????# """ " | | ??????????????????????????????????????# """""" | | ??????????????????????????????????????# """"" | | ??????????????????????????????????????# ^ | | ??????????????????????????????????????# ^ | | ??????????????????????????????????????# """ " | | ??????????????????????????????????????# """""" | | ??????????????????????????????????????# """"" | | ??????????????????????????????????????# | | ??????????????????????????????????????# | | ??????????????????????????????????????# ###### | | ??????????????????????????????????????# #????? | | ??????????????????????????????????????? #????? | | ??????????????????????????????????????? ?????? | | ???????????????????????????????????????????????? | | ???????????????????????????????????????????????? | | ???????????????????????????????????????????????? | +----------------------------------------------------+ Best States ------------- Heat Dissipation 28 Energy Generation 10 Energy Capacity 250 Matter Stores 263 Matter Capacity 300 Sight Range 16 Terrain Scan Density 10 Armor Coverage 150 Evasion (%) 40 Item Schematics ----------------- None Robot Schematics ------------------ None Fabricated ------------ Nothing Alien Tech Used ----------------- None Achievements -------------- None Challenges ------------ None Game ------ Seed FocalGlidesysFalx Manual? 0 Play Time 00:09:45 Cumulative 197.5 hours Start 2021.05.03 @ 19:19:10 End 2021.05.03 @ 19:25:37 Sessions 1 Manual Loads 0 Difficulty Rogue Special Mode None Game No. 305 Rogue 301 Adventurer 0 Explorer 4 Win Type - Total 2 Types 2/0/0/0/0/0/0/0/0 Lore% 69 Gallery% 80 Achievement% 53 Wizard Run 0 Options --------- ASCII 1 Keyboard 1 Movement Numpad Keybinds 0 Fullscreen 1 Font 18/TerminusBold Map View 76x50 Tactical HUD 1 Map Filters NONE Filters NONE Steam 1 RUN: 9f7c44c5-51a2-4b66-81b2-619e16baa1a3